[Event "Italian-ch Teams-B 2022"]
[Site "Montesilvano"]
[Date "2022.04.22"]
[Round "6.3"]
[White "Zamengo, Fulvio"]
[Black "Lapiccirella, Daniele"]
[Result "1-0"]
[ECO "B48"]
[WhiteElo "2404"]
[BlackElo "2180"]
[Annotator "TA"]
[PlyCount "101"]
[EventDate "2022.04.19"]
[EventType "team-tourn"]
[EventCountry "ITA"]
[SourceTitle "playchess.com"]
[Source "ChessBase"]
[SourceQuality "1"]
[TimeControl "40/5400+30:1800+30"]

{[%evp 11,101,37,41,25,36,50,48,12,12,12,21,12,27,14,16,-5,15,8,0,14,30,33,43,0,0,-13,26,-25,-4,-55,-47,-55,-34,-56,0,0,0,0,14,18,42,16,61,28,22,8,17,20,28,0,4,14,16,16,16,0,0,0,152,88,283,311,301,279,323,305,272,202,1001,939,1245,1350,1308,753,891,401,1521,1608,1656,1656,1637,1454,1461,1461,1350,1303,1182,1101,732,547,29966,29967]} 1. e4 {[%emt 0:00:05]} c5 {[%emt 0:00:04]} 2. Nf3 {[%emt 0:00:06]} e6 {[%emt 0:00:04]} 3. d4 {[%emt 0:00:16]} cxd4 {[%emt 0:00:04]} 4. Nxd4 {[%emt 0:00:07]} Nc6 {[%emt 0:00:04]} 5. Nc3 {[%emt 0:00:14]} Qc7 {[%emt 0:00:04]} 6. Be3 {[%emt 0:01:18]} a6 {[%emt 0:00:06]} 7. Qf3 {[%emt 0:00:14] 7.g4 is the modern continuation. B48: Sicilian: Taimanov: 5 Nc3 Qc7 6 Be3 a6 without Be2.} Bd6 {[%emt 0:00:06]} 8. O-O-O {[%emt 0:02:32]} Be5 $1 {[%emt 0:01:35]} 9. Nxc6 {[%emt 0:00:13] White is slightly better.} bxc6 {[%emt 0:00:06]} 10. Bd4 {[%emt 0:00:07]} Nf6 {[%emt 0:01:59]} 11. Bxe5 {[%emt 0:03:26]} Qxe5 {[%emt 0:00:49] [#]} 12. h4 $146 {[%emt 0:00:08]} ({Predecessor:} 12. Qg3 Qxg3 13. hxg3 e5 14. Be2 Ke7 15. g4 g5 16. Rh6 Rg8 17. f3 Rg6 18. Rxg6 fxg6 {1-0 (25) Inarkiev,E (2663)-Nihal,S (2612) Moscow 2019}) 12... d5 {[%emt 0:08:40]} 13. Bd3 {[%emt 0:02:20]} d4 {[%emt 0:06:07]} (13... Rb8 {keeps more tension.} 14. g4 O-O 15. g5 Nd7) 14. Nb1 {[%emt 0:00:10][%cal Bc3b1,Bb1d2,Bd2c4][%mdl 32]} c5 {[%emt 0:10:18]} 15. Nd2 {[%emt 0:00:38]} Bb7 {[%emt 0:00:03]} 16. Nc4 {[%emt 0:09:46]} Qc7 {[%emt 0:00:05]} 17. h5 {[%emt 0:00:06]} h6 {[%emt 0:05:53]} 18. Qe2 {[%emt 0:14:15]} e5 {[%emt 0:01:30]} (18... O-O {looks sharper.} 19. e5 Nd7 20. Nd6 Bd5) 19. g4 {[%emt 0:19:57]} (19. f4 $142) 19... Nh7 {[%emt 0:03:31]} 20. a4 {[%emt 0:00:23]} (20. Rhf1 $11) 20... Ng5 $15 {[%emt 0:02:53]} 21. a5 {[%emt 0:00:11]} O-O {[%emt 0:03:17]} 22. Nb6 {[%emt 0:00:39]} Rad8 {[%emt 0:00:10]} (22... c4 $15 23. Nxc4 (23. Nxa8 $2 Qxa5 24. Bxc4 Qa1+ 25. Kd2 Nxe4+ 26. Ke1 Qxb2 $19) (23. Bxc4 Bxe4 24. Nxa8 Qxa5 $17) 23... Nxe4) 23. f3 $11 {[%emt 0:01:04]} Rd6 {[%emt 0:01:51]} 24. Bc4 {[%emt 0:00:07]} Bc8 {[%emt 0:02:47]} 25. Rd3 {[%emt 0:00:51]} Be6 {[%emt 0:01:16]} 26. Rb3 {[%emt 0:00:32]} (26. Bxa6 $2 c4 27. Ra3 d3 $17) 26... Rb8 {[%emt 0:02:48]} 27. Bxe6 {[%emt 0:17:00]} Nxe6 {[%emt 0:00:34]} 28. Qxa6 {[%emt 0:01:21]} c4 $1 {[%emt 0:07:40]} 29. Qxc4 {[%emt 0:00:51]} Rc6 {[%emt 0:00:10][%mdl 64] Deflection} 30. Qb4 {[%emt 0:07:43]} (30. Qb5 $5 {[%cal Rh1h2]}) 30... Rxc2+ {[%emt 0:01:40]} 31. Kb1 {[%emt 0:00:05] Hoping for Nd5.} Rc6 {[%emt 0:10:01]} 32. Qd2 {[%emt 0:00:26]} Nc5 {[%emt 0:09:17]} 33. Rb4 {[%emt 0:01:17]} Qa7 $1 {[%emt 0:01:06]} 34. Nd5 $36 {[%emt 0:01:29][%mdl 2048] aiming for Rxb8+. White has some pressure.} Rbc8 {[%emt 0:00:20]} (34... Rxb4 $11 35. Qxb4 Ra6) 35. Rb6 {[%emt 0:01:58] White is more active.} (35. g5 $142 $1 {[%cal Rg5h6]}) 35... d3 $2 {[%emt 0:03:25] This costs Black the game.} (35... Ne6 $16 {was necessary.}) 36. Qb4 $18 {[%emt 0:01:20]} Kh7 {[%emt 0:00:31]} 37. Qb5 {[%emt 0:01:19]} Qd7 {[%emt 0:02:13]} 38. Rxc6 {[%emt 0:00:12]} Rxc6 {[%emt 0:00:05]} 39. b4 {[%emt 0:05:57][%cal Bb2b4,Bb4b5,Bb5b6][%mdl 32]} Nxe4 {[%emt 0:01:07]} (39... Na6 40. Qxd3 Qb7) 40. Qxd3 {[%emt 0:01:31] Nf6+ is the strong threat.} ({Not} 40. fxe4 $2 Rc1+ $3 {[%mdl 512]} 41. Kxc1 Qxb5 $19) 40... Qxd5 {[%emt 0:00:23]} 41. Qxe4+ {[%emt 0:30:06]} Qxe4+ {[%emt 0:30:04]} 42. fxe4 {[%emt 0:00:09][%mdl 4096] Endgame KR-KR} Rc4 {[%emt 0:00:03]} 43. b5 {[%emt 0:00:41]} Rc5 {[%emt 0:02:27] [#]} (43... Rb4+ $142 44. Kc2 Rxb5) 44. b6 $1 {[%emt 0:00:26] And now Rh2 would win.} Rxa5 {[%emt 0:00:08] [#]} 45. Rh2 $1 {[%emt 0:00:06] White wants to mate with b7.} ({Worse is} 45. Kc2 Rc5+ 46. Kd2 Rb5 $17) 45... Ra8 {[%emt 0:00:20]} 46. Rb2 {[%emt 0:00:17]} Kg8 {[%emt 0:00:19]} 47. Kc2 {[%emt 0:00:07]} Kf8 {[%emt 0:00:07]} 48. Kc3 {[%emt 0:01:12]} Ke7 {[%emt 0:00:32]} 49. Kc4 {[%emt 0:00:05]} Kd7 {[%emt 0:00:38]} 50. Kb5 {[%emt 0:01:08] Black must now prevent b7.} g6 {[%emt 0:03:16]} 51. b7 {[%emt 0:00:20] Weighted Error Value: White=0.20 (precise) /Black=0.43} 1-0

[Event "Italian-ch Teams-B 2022"]
[Site "Montesilvano"]
[Date "2022.04.22"]
[Round "6.3"]
[White "Botta, Massimiliano"]
[Black "Loiacono, Leonardo"]
[Result "1/2-1/2"]
[ECO "B04"]
[WhiteElo "2217"]
[BlackElo "2284"]
[Annotator "TA"]
[PlyCount "47"]
[EventDate "2022.04.19"]
[EventType "team-tourn"]
[EventCountry "ITA"]
[SourceTitle "playchess.com"]
[Source "ChessBase"]
[SourceQuality "1"]
[TimeControl "40/5400+30:1800+30"]

{[%evp 17,47,24,22,9,16,0,6,-5,31,13,49,0,13,16,25,18,31,35,53,29,50,31,48,24,13,31,23,26,31,0,0,11]} 1. e4 {[%emt 0:02:27]} d6 {[%emt 0:00:10]} 2. d4 {[%emt 0:00:04]} g6 {[%emt 0:00:05]} 3. Bc4 {[%emt 0:00:05]} Bg7 {[%emt 0:00:04]} 4. Nf3 {[%emt 0:00:05]} Nf6 {[%emt 0:00:06]} 5. Qe2 {[%emt 0:00:06]} O-O {[%emt 0:00:52]} 6. e5 {[%emt 0:00:11]} dxe5 {[%emt 0:00:48]} 7. dxe5 {[%emt 0:00:19]} Nd5 {[%emt 0:00:08]} 8. O-O {[%emt 0:00:07]} c6 {[%emt 0:00:03]} 9. h3 {[%emt 0:07:53]} Qc7 {[%emt 0:09:10]} 10. Bb3 {[%emt 0:08:22] B04: Alekhine's Defence: 4 Nf3.} Na6 {[%emt 0:07:57][%cal Bb8a6,Ba6c5,Bc5e6][%mdl 32] [#]} 11. a3 $146 {[%emt 0:22:46]} ({Predecessor:} 11. c3 Nc5 12. Bc2 a5 13. a3 b6 14. Rd1 Ba6 15. c4 Rfd8 16. Rd4 e6 17. Bg5 {1-0 (27) Ter Sahakyan,S (2640)-Seliverstov,V (2462) Chess.com INT 2020}) 11... Be6 {[%emt 0:05:31]} 12. Re1 {[%emt 0:01:59]} Nc5 {[%emt 0:07:55]} 13. Ba2 {[%emt 0:00:12]} a5 {[%emt 0:00:12]} 14. Nd4 {[%emt 0:05:15]} (14. c4 $14 {was preferrable.} Nb6 15. Nc3) 14... Rfd8 {[%emt 0:01:46]} 15. Nxe6 {[%emt 0:04:49]} Nxe6 {[%emt 0:00:05]} 16. Nd2 {[%emt 0:00:37]} a4 {[%emt 0:11:40]} (16... Ndf4 {seems wilder.} 17. Qe4 Rd4 18. Qe3 Rad8) 17. Nf3 {[%emt 0:01:17]} c5 {[%emt 0:04:31]} 18. Qe4 {[%emt 0:04:46]} Qc6 {[%emt 0:00:30]} 19. Bd2 {[%emt 0:04:48]} Rac8 {[%emt 0:01:16]} 20. Rad1 {[%emt 0:05:25] Black must now prevent Ba5.} c4 {[%emt 0:01:07]} 21. c3 {[%emt 0:02:36]} b5 {[%emt 0:01:26]} 22. Bb1 {[%emt 0:00:19]} Rd7 {[%emt 0:03:43]} 23. Bc1 {[%emt 0:08:49]} Rcd8 {[%emt 0:03:37]} 24. Bc2 {[%emt 0:00:06] Weighted Error Value: White=0.12 (very precise) /Black=0.10 (very precise)} 1/2-1/2

[Event "Italian-ch Teams-B 2022"]
[Site "Montesilvano"]
[Date "2022.04.22"]
[Round "6.4"]
[White "Mazzilli, Piero"]
[Black "Pasini, Nicolo"]
[Result "0-1"]
[ECO "B13"]
[WhiteElo "2296"]
[BlackElo "2252"]
[Annotator "TA"]
[PlyCount "122"]
[EventDate "2022.04.19"]
[EventType "team-tourn"]
[EventCountry "ITA"]
[SourceTitle "playchess.com"]
[Source "ChessBase"]
[SourceQuality "1"]
[TimeControl "40/5400+30:1800+30"]

{[%evp 13,122,3,18,4,8,-22,-12,-12,0,0,0,0,0,-13,0,-34,-45,-50,-33,-41,4,-30,-23,-25,-27,-27,-29,-29,-29,-33,-31,-28,-32,-33,-7,-36,-6,-149,-148,-224,-167,-175,-167,-196,-174,-177,-168,-177,-183,-216,-227,-226,-207,-247,-127,-146,-169,-162,-146,-207,-168,-268,-136,-447,-585,-460,-434,-558,-545,-706,-749,-731,-691,-1143,-698,-1168,-1075,-1013,-991,-637,-737,-1010,-1003,-866,-920,-873,-720,-1143,-1039,-657,-1099,-1117,-1097,-1089,-1006,-964,-951,-862,-840,-1162,-939,-1235,-1158,-2224,-2110,-1743,-1551,-29953,-12318,-2356,-1070]} 1. Nf3 {[%emt 0:00:02]} c5 {[%emt 0:00:18]} 2. e3 {[%emt 0:01:34]} Nf6 {[%emt 0:01:09]} 3. d4 {[%emt 0:00:15]} cxd4 {[%emt 0:01:45]} 4. exd4 {[%emt 0:00:09]} d5 {[%emt 0:00:05]} 5. Bd3 {[%emt 0:05:07]} Nc6 {[%emt 0:00:59]} 6. c3 {[%emt 0:00:09]} Bg4 {[%emt 0:01:00]} 7. Bf4 {[%emt 0:01:37]} e6 {[%emt 0:00:08]} 8. Qb3 {[%emt 0:01:39] B13: Caro-Kann: Exchange Variation and Panov-Botvinnik Attack.} Bd6 {[%emt 0:01:35] [#]} 9. Qxb7 $1 {[%emt 0:09:46] [#]} O-O $1 {[%emt 0:01:04]} 10. Bg3 {[%emt 0:00:35] [#] The position is equal.} Bxg3 $146 {[%emt 0:18:23]} ({Predecessor:} 10... Bxf3 11. gxf3 Rc8 12. Nd2 e5 13. Bb5 Rc7 14. Qa6 Nb8 15. Qa4 exd4 16. cxd4 Nh5 {½-½ (35) Nett,P (2147)-Garcia,M (2121) IECC email 2007}) 11. hxg3 {[%emt 0:02:15]} Qd6 {[%emt 0:00:02]} 12. Qa6 {[%emt 0:13:32][%cal Of3e5]} Rab8 {[%emt 0:05:34]} 13. Nbd2 {[%emt 0:25:17]} Bxf3 {[%emt 0:11:05]} 14. Nxf3 {[%emt 0:02:35]} Rxb2 {[%emt 0:05:10]} 15. O-O {[%emt 0:14:49]} ({Don't play} 15. Bb5 Qb8 $1 16. Bd3 (16. Bxc6 $2 Rb1+ 17. Rxb1 Qxb1+ 18. Ke2 Qxh1 $19) 16... Rb6 $17) 15... Rfb8 {[%emt 0:04:20] Prevents Bb5.} (15... Rb6 $5 16. Qa4 Qc7 $11) 16. Rab1 {[%emt 0:03:35] Threatens to win with Rxb2.} R8b6 {[%emt 0:08:58]} 17. Qa4 {[%emt 0:03:01]} g6 {[%emt 0:09:30]} 18. Rxb2 {[%emt 0:01:14]} Rxb2 {[%emt 0:00:10]} 19. Rb1 {[%emt 0:00:02]} Rxb1+ {[%emt 0:00:51]} 20. Bxb1 {[%emt 0:00:01] [#]} Qb8 $1 {[%emt 0:01:30]} 21. Qb3 {[%emt 0:01:03]} (21. Bd3 Qc7) 21... Qc7 {[%emt 0:01:05]} 22. Bd3 {[%emt 0:01:01]} Kg7 {[%emt 0:01:46]} 23. Qc2 {[%emt 0:03:30]} Nd7 {[%emt 0:03:11]} 24. Nd2 {[%emt 0:02:27]} Qa5 {[%emt 0:05:36]} 25. Qb3 {[%emt 0:00:43]} (25. g4 $11) 25... Nxd4 $1 $17 {[%emt 0:02:14]} 26. Qb4 {[%emt 0:00:11]} (26. Qb2 $17 {is a better defense.} Nc5 27. c4) 26... Nc6 {[%emt 0:01:05]} 27. Qb2 {[%emt 0:01:07]} Qb6 {[%emt 0:02:12]} 28. Qc2 {[%emt 0:01:23]} e5 {[%emt 0:02:22]} 29. Be2 {[%emt 0:00:39]} Nf6 {[%emt 0:02:22]} 30. g4 {[%emt 0:01:10]} h6 {[%emt 0:00:20]} 31. g3 {[%emt 0:00:24]} Qc5 {[%emt 0:00:50][%cal Oc6d4]} 32. Nb3 {[%emt 0:01:08] Prevents Nd4.} Qd6 {[%emt 0:01:37]} 33. Qd3 {[%emt 0:00:33]} d4 {[%emt 0:01:16]} (33... a5 $19 {aiming for ...a4.} 34. Qb5 Ne4) 34. cxd4 {[%emt 0:02:16]} Nxd4 {[%emt 0:00:45]} ({Inferior is} 34... exd4 35. Kf1 $17) 35. Nxd4 {[%emt 0:00:28]} exd4 {[%emt 0:00:11]} 36. f4 {[%emt 0:01:40]} (36. Kf1 $17) 36... Nd7 {[%emt 0:01:41]} 37. Kf2 {[%emt 0:01:02]} (37. Bf3 $142) 37... Qd5 {[%emt 0:01:13]} (37... Nc5 $19 38. Qc4 g5) 38. Qb3 {[%emt 0:00:37][%mdl 8192] [#] This move loses the game for White.} (38. Qb5 $17 {is more resistant.} Nc5 39. Bc4 Ne4+ 40. Kg2 Qxb5 41. Bxb5) 38... Qxb3 $1 $19 {[%emt 0:01:06]} 39. axb3 {[%emt 0:00:01][%mdl 4096] Endgame KB-KN} a5 {[%emt 0:00:17]} 40. Kf3 {[%emt 0:00:59]} Nc5 {[%emt 0:00:11]} 41. Bc4 {[%emt 0:30:06]} g5 {[%emt 0:30:08]} 42. Bd5 {[%emt 0:00:51]} Kf8 {[%emt 0:00:23]} 43. Ke2 {[%emt 0:00:45]} Ke7 {[%emt 0:00:09] White must now prevent ...gxf4.} 44. Kd2 {[%emt 0:00:20]} f6 {[%emt 0:00:18]} 45. Kc2 {[%emt 0:00:12]} Kd6 {[%emt 0:00:12]} 46. Bf3 {[%emt 0:00:18]} Kc7 {[%emt 0:02:10]} 47. Bd5 {[%emt 0:00:56]} Kb6 {[%emt 0:01:57]} 48. Bc4 {[%emt 0:00:02]} Kc6 {[%emt 0:00:19]} 49. Kd2 {[%emt 0:00:44]} Kd6 {[%emt 0:02:30]} 50. Bf7 {[%emt 0:00:31]} Na6 {[%emt 0:00:00]} 51. Kd3 {[%emt 0:00:00]} Kc5 {[%emt 0:00:00]} 52. Ke4 {[%emt 0:00:00]} Nb4 {[%emt 0:00:00]} 53. Bg8 {[%emt 0:00:00]} Na2 {[%emt 0:00:00]} ({And not} 53... gxf4 54. gxf4 Nc2 55. Bf7 $17) 54. Kd3 {[%emt 0:00:00]} Nc3 {[%emt 0:00:00]} 55. Be6 {[%emt 0:00:00]} Nd1 {[%emt 0:00:00]} 56. Kd2 {[%emt 0:00:00]} Nf2 {[%emt 0:00:00]} 57. Ke2 {[%emt 0:00:00]} Ne4 {[%emt 0:00:00] Strongly threatening ...Kb4.} 58. Kf3 {[%emt 0:00:00]} Nc3 {[%emt 0:00:00]} 59. Kf2 {[%emt 0:00:00]} Kb4 {[%emt 0:00:00] ( -> ...Ne4+)} 60. Bf7 {[%emt 0:00:00]} Ne4+ {[%emt 0:00:00]} 61. Kf3 {[%emt 0:01:07]} Nd6 {[%emt 0:00:00] Weighted Error Value: White=0.80/Black=0.20 (precise)} (61... Nd2+ $142 62. Ke2 Nxb3) 0-1

[Event "Italian-ch Teams-B 2022"]
[Site "Montesilvano"]
[Date "2022.04.22"]
[Round "6.4"]
[White "Luciani, Valerio"]
[Black "Altini, Nicola"]
[Result "0-1"]
[ECO "B59"]
[WhiteElo "2151"]
[BlackElo "2403"]
[Annotator "TA"]
[PlyCount "88"]
[EventDate "2022.04.19"]
[EventType "team-tourn"]
[EventCountry "ITA"]
[SourceTitle "playchess.com"]
[Source "ChessBase"]
[SourceQuality "1"]
[TimeControl "40/5400+30:1800+30"]

{[%evp 22,88,15,18,40,35,25,19,43,37,33,12,73,20,27,-22,0,-52,-45,-58,-48,-75,-51,-78,-63,-72,-37,-42,-50,-58,-42,-42,-42,-42,-42,-38,-40,-42,-27,-35,-22,-49,0,-25,0,-44,0,-55,0,0,0,0,0,0,0,-142,-171,-249,-252,-220,-206,-674,-643,-12835,-12835,-12836,-12836,-12838,-12839]} 1. e4 {[%emt 0:00:09]} c5 {[%emt 0:01:10]} 2. Nf3 {[%emt 0:00:13]} Nc6 {[%emt 0:00:03]} 3. d4 {[%emt 0:00:13]} cxd4 {[%emt 0:00:04]} 4. Nxd4 {[%emt 0:00:12]} Nf6 {[%emt 0:00:42]} 5. Nc3 {[%emt 0:00:22]} d6 {[%emt 0:00:02]} 6. Be2 {[%emt 0:03:44]} e5 {[%emt 0:00:22]} 7. Nb3 {[%emt 0:02:01]} Be7 {[%emt 0:00:09]} 8. Be3 {[%emt 0:01:22]} Be6 {[%emt 0:04:40]} 9. O-O {[%emt 0:02:11]} O-O {[%emt 0:00:35]} 10. Bf3 {[%emt 0:09:28]} a5 {[%emt 0:00:19]} 11. Nd5 {[%emt 0:04:31]} Bxd5 {[%emt 0:05:42]} 12. exd5 {[%emt 0:00:07]} Nb4 $1 {[%emt 0:00:30] The main line 12...Nb4 scores better than 12...Nb8. B59: Classical Sicilian: 6 Be2 e5 7 Nb3.} 13. c3 {[%emt 0:07:00]} Na6 {[%emt 0:00:07]} 14. a4 {[%emt 0:01:05]} Nd7 {[%emt 0:01:47][%cal Bf6d7,Bd7c5,Bc5a6,Ba6b4][%mdl 32] The position is equal.} 15. Be2 {[%emt 0:02:36]} f5 {[%emt 0:00:12]} 16. f3 {[%emt 0:00:46] [#]} b6 $146 {[%emt 0:06:07]} (16... Nac5 $11) ({Predecessor:} 16... Qc7 17. Bb5 Bd8 18. Nxa5 Qxa5 19. Bxd7 Bb6 20. Bf2 Kh8 21. Kh1 Bxf2 22. Rxf2 Nc7 23. Rd2 Rad8 24. Be6 Rf6 25. Qb3 Nxe6 26. dxe6 Qc7 {½-½ (26) Pilnik,H-Nedeljkovic,A Belgrade 1952}) 17. Bxa6 {[%emt 0:03:00]} (17. Bb5) (17. Bb5 $16) 17... Rxa6 $11 {[%emt 0:03:11]} 18. c4 {[%emt 0:04:57]} (18. f4 $142) 18... Nc5 {[%emt 0:08:28]} 19. Nd2 {[%emt 0:04:40]} (19. Qc2 $11) 19... Bg5 $15 {[%emt 0:05:37]} 20. Qe2 {[%emt 0:01:34]} Ra7 {[%emt 0:02:04]} 21. Rfb1 {[%emt 0:06:58]} Na6 {[%emt 0:04:25] Black is more active.} 22. Rf1 {[%emt 0:02:58]} Bxe3+ {[%emt 0:12:57]} 23. Qxe3 {[%emt 0:00:10]} Qc7 {[%emt 0:01:46]} 24. b3 {[%emt 0:04:50]} Qc5 {[%emt 0:00:53]} 25. Rfe1 {[%emt 0:01:58]} Nb4 {[%emt 0:00:46] Threatens to win with ...Nc2.} 26. Qxc5 {[%emt 0:03:11]} bxc5 {[%emt 0:00:04]} 27. Rec1 {[%emt 0:00:38] Inhibits Nc2.} Re7 {[%emt 0:01:50]} 28. Rc3 {[%emt 0:00:32]} Kf7 {[%emt 0:05:07]} 29. Re1 {[%emt 0:01:15]} Ke8 {[%emt 0:00:10]} 30. Re2 {[%emt 0:02:13]} Kd7 {[%emt 0:00:14]} 31. Nf1 {[%emt 0:02:52]} g5 {[%emt 0:02:38]} (31... h5 $15) 32. Nd2 {[%emt 0:06:42]} h5 {[%emt 0:00:30]} 33. h3 {[%emt 0:01:17]} (33. g4 $5) 33... Rg7 {[%emt 0:03:57]} 34. Rf2 {[%emt 0:03:00]} (34. g4 $11) 34... Rff7 {[%emt 0:04:51]} (34... h4 $15) 35. g4 $11 {[%emt 0:02:51]} hxg4 {[%emt 0:03:19]} 36. hxg4 {[%emt 0:01:08]} fxg4 {[%emt 0:00:23]} 37. fxg4 {[%emt 0:00:48]} Rf4 {[%emt 0:00:05]} 38. Rg3 {[%emt 0:01:29] [#]} (38. Rxf4 $1 $11 gxf4 39. Rh3) 38... Nc2 $1 $17 {[%emt 0:01:24]} 39. Nf1 {[%emt 0:08:15]} (39. Kf1 {was worth a try.}) 39... Nd4 $19 {[%emt 0:01:09]} 40. Nd2 {[%emt 0:02:57]} Rh7 {[%emt 0:06:23]} 41. Rfg2 $2 {[%emt 0:21:08]} (41. Rxf4 gxf4 42. Rd3) 41... e4 {[%emt 0:20:09] Black is clearly winning.} 42. Rh2 {[%emt 0:01:07]} Rxh2 {[%emt 0:01:04]} 43. Kxh2 {[%emt 0:00:01]} Rf2+ {[%emt 0:00:11]} 44. Rg2 {[%emt 0:00:03] [#]} Rxd2 $1 {[%emt 0:00:24][%mdl 512] Weighted Error Value: White=0.61/Black=0.13 (very precise)} 0-1

[Event "Italian-ch Teams-B 2022"]
[Site "Montesilvano"]
[Date "2022.04.22"]
[Round "6.4"]
[White "Bolognese, Leonardo"]
[Black "Schacher, Gerd"]
[Result "0-1"]
[ECO "A65"]
[WhiteElo "2037"]
[BlackElo "2246"]
[Annotator "TA"]
[PlyCount "92"]
[EventDate "2022.04.19"]
[EventType "team-tourn"]
[EventCountry "ITA"]
[SourceTitle "playchess.com"]
[Source "ChessBase"]
[SourceQuality "1"]
[TimeControl "40/5400+30:1800+30"]

{[%evp 18,92,48,49,46,0,0,-9,29,-31,0,-5,-12,-42,-24,-31,-43,-81,-104,-93,-86,-98,-34,-58,-38,-75,-41,-47,-11,-8,-10,-20,0,0,14,18,50,0,54,-8,-8,-24,-26,-25,-23,-253,-253,-253,-253,-235,-47,-298,-298,-591,-504,-535,-155,-156,0,-425,-171,-1345,-677,-1110,0,-4084,-1890,-29966,-29967,-29978,-29979,-29988,-29989,-29989,-29990,-29991,-29992]} 1. d4 {[%emt 0:00:09][%cal Bd2d4,Bd4d5][%mdl 32]} g6 {[%emt 0:00:23]} 2. c4 {[%emt 0:00:46]} Bg7 {[%emt 0:00:22]} 3. e4 {[%emt 0:00:18]} c5 {[%emt 0:00:34]} 4. d5 {[%emt 0:00:41]} d6 {[%emt 0:00:39]} 5. Ne2 {[%emt 0:06:45]} Nf6 {[%emt 0:01:38]} 6. Nbc3 {[%emt 0:00:19]} O-O {[%emt 0:01:05]} 7. Ng3 {[%emt 0:07:37]} e6 {[%emt 0:09:22]} 8. Be2 {[%emt 0:05:04]} exd5 {[%emt 0:00:40]} 9. cxd5 {[%emt 0:00:01] 9.cxd5 scores better than 9.exd5.} a6 {[%emt 0:05:27]} 10. a4 {[%emt 0:00:12]} Nbd7 {[%emt 0:00:35] A65: Modern Benoni: 6 e4.} 11. f4 {[%emt 0:06:50]} (11. Bf4 $14 {is more appropriate.}) 11... Rb8 {[%emt 0:04:47][%cal Oc5c4]} 12. O-O {[%emt 0:05:04]} Ne8 {[%emt 0:15:07] The position is equal.} 13. Bd3 {[%emt 0:22:22]} (13. Be3 $11) 13... Nc7 {[%emt 0:02:50]} (13... b5 $5) 14. Qf3 {[%emt 0:03:21]} b5 {[%emt 0:02:46]} 15. axb5 {[%emt 0:05:49] [#]} Nxb5 $146 {[%emt 0:00:41]} ({Predecessor:} 15... axb5 16. e5 dxe5 17. d6 Ne6 18. Nxb5 exf4 19. Bxf4 {½-½ (19) Bisguier,A-Goichberg,W Las Vegas 1973}) 16. Nxb5 {[%emt 0:00:18]} axb5 {[%emt 0:00:04]} 17. e5 {[%emt 0:01:27]} dxe5 {[%emt 0:07:41]} 18. f5 {[%emt 0:00:05]} c4 {[%emt 0:08:38]} 19. Be4 {[%emt 0:05:24]} Nf6 {[%emt 0:08:43]} ({Better is} 19... Qh4 $17 20. Be3 Nf6 21. fxg6 hxg6) 20. Be3 $15 {[%emt 0:04:31]} Bb7 {[%emt 0:11:39]} 21. Rfd1 {[%emt 0:03:06]} Qd6 {[%emt 0:06:18]} (21... Nxe4 $6 22. Nxe4 Ra8 23. Rxa8 Qxa8 24. f6 $11) 22. h4 {[%emt 0:10:32]} ({But not} 22. Ra7 Rfc8 23. Bg5 b4 24. Bxf6 Qxf6 25. fxg6 (25. d6 Bxe4 26. Nxe4 Qxf5 $15) 25... hxg6) 22... Ra8 {[%emt 0:04:30]} 23. Rxa8 {[%emt 0:01:39]} Rxa8 {[%emt 0:00:45]} 24. h5 {[%emt 0:00:20][%cal Rf5g6]} gxh5 {[%emt 0:05:20]} 25. Nxh5 {[%emt 0:00:12]} b4 {[%emt 0:00:42]} 26. Nxf6+ {[%emt 0:02:01]} Bxf6 {[%emt 0:01:09]} 27. g4 {[%emt 0:05:00]} (27. Qh3 $14) 27... Kh8 {[%emt 0:00:28]} (27... Qd8 $1 $11) 28. Kh1 {[%emt 0:01:00]} (28. Qh3 $14 Qd8 29. Qh6) 28... Rg8 $1 $11 {[%emt 0:00:47] Threatens to win with ...Bg5.} 29. Qh3 {[%emt 0:01:48][%cal Og4g5]} c3 {[%emt 0:00:27]} 30. bxc3 {[%emt 0:01:04]} bxc3 {[%emt 0:00:01][%cal Oc3c2] Strongly threatening ...c2!} 31. Qf3 $2 {[%emt 0:01:27]} (31. Kh2 $11) 31... Bg5 $1 $19 {[%emt 0:01:17]} 32. Bxg5 {[%emt 0:00:28]} Rxg5 {[%emt 0:00:01]} 33. f6 {[%emt 0:00:25] [#]} Bc8 $2 {[%emt 0:00:32]} (33... h5 $1 $19 34. Qxc3 (34. gxh5 $2 Qc5 $19) 34... Qxf6) 34. Rg1 $2 {[%emt 0:00:37][%mdl 8192] [#]} ({White has to play} 34. Qh3 $15 h5 35. Qxc3) 34... Qc5 $1 {[%emt 0:00:38]} 35. Rg2 {[%emt 0:00:20]} (35. Bc2 {was called for.}) 35... Qd4 {[%emt 0:00:46][%cal Oc8g4]} 36. Kh2 {[%emt 0:00:52]} Bd7 $2 {[%emt 0:00:33]} (36... c2 $19 37. Rxc2 Bxg4) 37. Ra2 $17 {[%emt 0:00:28]} Bc8 $2 {[%emt 0:00:34]} (37... Ba4 $17 {[%cal Oh7h5] Hoping for ...h5!} 38. Qd3 Qb4) 38. Ra8 $2 {[%emt 0:00:33][%mdl 8192]} (38. Rg2 $11 {and White stays safe.}) 38... Qd2+ {[%emt 0:00:21]} (38... Rg8 $142 {White must now prevent ...Qd2+.} 39. Qe2 h5) 39. Kh1 $2 {[%emt 0:00:33]} (39. Qg2 Rg8 40. Qxd2 cxd2 41. Bf3) 39... Qe1+ {[%emt 0:00:12]} 40. Kg2 {[%emt 0:00:22]} Qd2+ $2 {[%emt 0:00:41]} ({Black should try} 40... Rg8 $19 41. Kh2 h5) 41. Kf1 $2 {[%emt 0:17:20][%mdl 8192]} (41. Kh1 $11 Rg8 42. Qg2) 41... Rg8 $19 {[%emt 0:16:44] ( -> ...c2)} 42. Qd3 {[%emt 0:11:41] Inhibits c2.} Qf4+ {[%emt 0:02:09] Black mates.} 43. Ke1 {[%emt 0:00:20]} Qxg4 {[%emt 0:01:18]} 44. d6 {[%emt 0:01:13]} Qg1+ {[%emt 0:00:43]} 45. Ke2 {[%emt 0:01:45]} Bg4+ {[%emt 0:00:15]} 46. Bf3 {[%emt 0:00:29]} Rxa8 {[%emt 0:00:13] Weighted Error Value: White=1.01/Black=0.84} 0-1